bitfinex-derivatives/quotes_BNBF0:USTF0_20250521
["timestamp","ask_amount","ask_price","bid_price","bid_amount"]
[1747788847258,1.207,650.53,650.15,1.36714564]
[1747788847455,1.207,650.53,650.16,0.58618751]
[1747788847652,1.207,650.53,650.17,0.58618751]
[1747788847856,1.207,650.53,650.18,0.58618751]
[1747788848060,1.207,650.53,650.19,0.58618751]
[1747788848260,1.207,650.53,649.91,0.25810844]
[1747788848559,1.207,650.53,649.92,0.58636163]
[1747788848759,1.207,650.53,649.93,1.36762681]
[1747788848959,1.207,650.53,649.94,0.58636163]
[1747788849160,1.207,650.53,649.95,0.58636163]
[1747788849361,1.207,650.53,649.96,1.36762681]
[1747788849558,1.207,650.53,649.97,0.58636163]
[1747788849763,1.207,650.53,649.98,0.58636163]
[1747788850061,1.207,650.53,649.99,1.36762681]
[1747788850257,1.207,650.53,650.0,0.58636163]
[1747788850461,1.207,650.53,650.01,1.36791698]
[1747788850661,1.207,650.53,650.02,0.5866518]
[1747788850857,1.207,650.53,650.03,0.5866518]
[1747788851062,1.207,650.53,650.04,0.5866518]
[1747788851262,1.207,650.53,650.05,0.5866518]
[1747788851463,1.207,650.53,650.06,0.5866518]
[1747788851658,1.207,650.53,649.92,0.25810844]
[1747788851659,1.207,650.53,650.07,1.36791698]
[1747788851858,1.207,650.53,650.08,0.5866518]
[1747788852063,1.207,650.53,650.07,0.78126518]
[1747788852260,1.207,650.53,650.08,1.36790585]
[1747788852464,1.207,650.53,650.09,0.58664067]
[1747788852664,1.207,650.53,650.1,0.58664067]
[1747788852860,1.207,650.53,650.11,0.58664067]
[1747788853064,1.207,650.53,650.12,0.58664067]
[1747788853265,1.207,650.53,650.13,0.58664067]
[1747788853565,1.207,650.53,650.14,1.36790585]
[1747788853765,1.207,650.53,650.15,0.58664067]
[1747788853962,1.207,650.53,650.16,0.58664067]
[1747788854163,1.207,650.53,650.17,0.58664067]
[1747788854363,1.207,650.53,650.18,0.58664067]
[1747788854663,1.207,650.53,650.19,0.58664067]
[1747788854861,1.207,650.53,650.2,0.58664067]
[1747788855065,1.207,650.53,650.21,0.58664067]
[1747788855265,1.207,650.53,650.22,0.58664067]
[1747788855461,1.207,650.53,649.9,0.25810844]
[1747788855663,2.73528201,650.53,649.91,0.58652343]
[1747788855864,2.73528201,650.53,649.92,0.58652343]
[1747788856064,2.73528201,650.53,649.93,0.58652343]
[1747788856266,2.73528201,650.53,649.94,0.58652343]
[1747788856467,2.73528201,650.53,649.95,0.58652343]
[1747788856668,2.73528201,650.53,649.96,0.58652343]
[1747788856964,2.73528201,650.53,649.97,1.36812029]
[1747788857169,2.73528201,650.53,649.98,0.58652343]
[1747788857369,2.73528201,650.53,649.99,0.58652343]
[1747788857670,2.73528201,650.53,650.0,0.58652343]
[1747788857862,2.73528201,650.53,650.01,1.36812029]
[1747788858066,2.73528201,650.53,650.02,0.58652343]
[1747788858269,2.73528201,650.53,650.03,1.36812029]
[1747788858569,2.73528201,650.53,650.04,0.58652343]
[1747788858769,2.73528201,650.53,650.05,1.36812029]
[1747788858970,2.73528201,650.53,650.06,0.58652343]
[1747788859169,2.73528201,650.53,650.07,0.58646369]
[1747788859370,2.73528201,650.53,650.08,0.58646369]
[1747788859570,2.73528201,650.53,650.09,0.58646369]
[1747788859771,2.73528201,650.53,650.1,1.36806055]
[1747788860071,2.73528201,650.53,650.11,0.58646369]
[1747788860272,2.73528201,650.53,650.12,1.36806055]
[1747788860467,2.73528201,650.53,650.13,1.36806055]
[1747788860670,1.207,650.53,650.14,0.58646369]
[1747788860868,1.207,650.53,650.15,0.58642707]
[1747788861067,1.207,650.53,650.16,1.36802393]
[1747788861267,1.207,650.53,650.17,0.58642707]
[1747788861471,1.207,650.53,650.18,0.58642707]
[1747788861672,1.207,650.53,650.16,0.78159686]
[1747788861673,1.207,650.53,650.19,0.58642707]
[1747788861868,1.207,650.53,650.2,0.58642707]
[1747788862070,1.207,650.53,650.21,0.58642707]
[1747788862276,1.207,650.53,649.95,1.632]
[1747788862573,1.207,650.53,649.96,0.58676731]
[1747788862772,1.207,650.53,649.97,0.58676731]
[1747788862972,1.207,650.53,649.98,0.58676731]
[1747788863174,1.207,650.53,649.99,0.58676731]
[1747788863374,1.207,650.53,649.98,0.78143313]
[1747788863375,1.207,650.53,650.0,1.36820044]
[1747788863572,1.207,650.53,650.01,0.58676731]
[1747788863772,1.207,650.53,650.02,1.36820044]
[1747788863976,1.52828201,650.46,650.03,0.58676731]
[1747788864274,1.52828201,650.46,650.04,0.58676731]
[1747788864574,1.52828201,650.46,650.05,1.36816808]
[1747788864874,1.52828201,650.46,650.06,1.36816808]
[1747788865069,1.52828201,650.46,650.07,0.58673495]
[1747788865269,1.52828201,650.46,650.08,1.36816808]
[1747788865475,1.52828201,650.46,650.09,0.58673495]
[1747788865672,1.52828201,650.46,650.1,0.58673495]
[1747788865870,1.52828201,650.46,650.11,0.58673495]
[1747788866074,1.52828201,650.46,650.12,0.58697491]
[1747788866277,1.52828201,650.46,650.13,1.36840804]
[1747788866476,1.52828201,650.46,650.14,0.58697491]
[1747788866676,1.52828201,650.46,650.15,1.36840804]
[1747788866878,1.207,650.53,650.16,0.58697491]
[1747788867071,1.207,650.53,650.17,1.36840804]
[1747788867272,1.207,650.53,650.18,0.58697491]
[1747788867476,1.207,650.53,650.19,0.58697491]
[1747788867773,1.207,650.53,649.95,1.632]
[1747788867978,1.207,650.53,649.96,1.36745639]
[1747788868176,1.207,650.53,649.97,0.58688058]
[1747788868373,1.207,650.53,649.98,1.36745639]
[1747788868576,1.207,650.53,649.99,0.58688058]
[1747788868777,1.207,650.53,650.0,1.36745639]
[1747788868979,1.207,650.53,650.01,0.58688058]
[1747788869178,1.207,650.53,650.02,1.36745639]
[1747788869380,1.207,650.53,650.03,0.58688058]
[1747788869573,1.52828201,650.59,650.04,1.36715872]
[1747788869879,1.52828201,650.59,650.05,0.58658291]
[1747788870072,1.52828201,650.59,650.06,0.58658291]
[1747788870378,1.52828201,650.73,650.07,1.36715872]
[1747788870579,1.52828201,650.73,650.08,0.58658291]
[1747788870778,1.52828201,650.73,650.09,0.58658291]
[1747788871079,1.52828201,650.73,650.1,1.36715872]
[1747788871279,1.52828201,650.73,650.11,0.58658291]
[1747788871481,1.52828201,650.73,650.12,0.58658291]
[1747788871778,1.52828201,650.73,650.13,0.58658291]
[1747788871980,1.52828201,650.73,650.14,0.89415786]
[1747788872179,1.52828201,650.73,650.15,0.58658291]
[1747788872377,1.52828201,650.73,650.16,1.36715872]
[1747788872577,2.59628201,650.73,650.17,0.58658291]
[1747788872778,2.59628201,650.73,650.18,0.58658291]
[1747788872974,2.59628201,650.73,650.19,0.58628121]
[1747788873278,2.59628201,650.73,650.2,1.36685702]
[1747788873479,2.59628201,650.73,650.21,0.58628121]
[1747788873678,2.59628201,650.73,650.22,1.36685702]
[1747788873878,2.59628201,650.73,650.23,1.36685702]
[1747788874080,2.59628201,650.73,650.24,0.58628121]
[1747788874381,1.068,650.73,650.25,1.36685702]
[1747788874578,1.068,650.73,650.26,0.58628121]
[1747788874778,1.068,650.73,650.27,0.58601449]
[1747788874975,1.068,650.73,650.28,0.89355906]
[1747788875178,1.068,650.73,650.29,0.58601449]
[1747788875376,1.068,650.73,650.3,0.58601449]
[1747788875581,1.068,650.73,650.31,0.58601449]
[1747788875880,1.068,650.73,650.28,0.30754457]
[1747788876082,1.068,650.73,650.29,0.58589127]
[1747788876279,1.068,650.73,650.3,0.58589127]
[1747788876478,1.068,650.73,650.31,0.5857851]
[1747788876678,1.068,650.73,650.28,0.30754457]
[1747788876875,1.068,650.73,650.29,0.58578082]
[1747788877080,1.068,650.73,650.3,0.58578082]
[1747788877277,1.068,650.73,650.31,0.58578082]
[1747788877488,1.068,650.73,650.05,0.25916636]
[1747788877782,1.068,650.73,650.06,0.58572939]
[1747788877983,1.068,650.73,650.07,0.58572939]
[1747788878282,1.068,650.73,650.08,1.36410715]
[1747788878482,1.068,650.73,650.09,0.58572939]
[1747788878783,1.068,650.73,650.1,0.58572939]
[1747788878987,1.068,650.73,650.11,0.58572939]
[1747788879282,1.068,650.73,650.12,1.36410715]
[1747788879483,1.068,650.73,650.13,0.58572939]
[1747788882180,1.068,650.73,650.25,1.36379141]
[1747788882379,1.068,650.73,650.26,0.58541365]
[1747788882595,1.068,650.73,650.27,0.58541365]
[1747788882784,1.068,650.73,650.28,0.58534359]
[1747788882979,1.068,650.73,650.22,0.30753303]
[1747788883283,1.068,650.73,650.23,0.5853452]
[1747788883479,1.068,650.73,650.24,0.5853452]
[1747788883681,1.068,650.73,650.25,0.5853452]
[1747788883883,1.068,650.73,650.26,0.5853452]
[1747788884086,1.068,650.73,650.27,0.5853452]
[1747788884283,1.068,650.73,650.07,0.25916636]
[1747788884477,1.068,650.73,650.08,1.36371775]
[1747788884677,1.068,650.73,650.09,0.58525881]
[1747788884879,1.068,650.73,650.1,1.36371775]
[1747788885180,1.068,650.73,650.11,0.58525881]
[1747788885478,1.068,650.73,650.12,0.58525881]
[1747788885682,1.068,650.73,650.13,1.36371775]
[1747788885882,1.068,650.73,650.14,0.58525881]
[1747788886079,1.068,650.73,650.15,0.58525881]
[1747788886283,1.068,650.73,650.16,0.58525881]
[1747788886484,1.068,650.73,650.17,1.36371775]
[1747788886779,1.068,650.73,650.18,0.58525881]
[1747788886983,1.068,650.73,650.19,1.36371775]
[1747788887184,1.068,650.73,650.2,1.67125504]
[1747788887385,1.068,650.73,650.21,0.58525881]
[1747788887585,1.068,650.73,650.22,0.58525881]
[1747788887784,1.068,650.73,650.23,1.36371775]
[1747788887983,1.068,650.73,650.24,0.58525881]
[1747788888187,1.068,650.73,650.25,0.58525881]
[1747788888385,1.068,650.73,650.26,0.58525881]
[1747788888588,1.068,650.73,650.05,0.949]
[1747788888787,1.068,650.73,650.06,0.58508107]
[1747788888987,1.068,650.73,650.05,0.949]
[1747788888988,1.068,650.73,650.07,1.36307316]
[1747788889187,1.068,650.73,650.08,0.58508107]
[1747788889389,1.068,650.73,650.09,1.36307316]
[1747788889683,1.068,650.73,650.1,1.36307316]
[1747788889888,1.068,650.73,650.11,1.36307316]
[1747788890089,1.068,650.73,650.12,0.58508107]
[1747788890288,1.068,650.73,650.13,1.36307316]
[1747788890488,1.068,650.73,650.14,0.58508107]
[1747788890688,1.068,650.73,650.15,1.36307316]
[1747788890889,1.068,650.73,650.16,0.58508107]
[1747788891089,1.068,650.73,650.17,1.36307316]
[1747788891288,1.068,650.73,650.18,0.89262389]
[1747788891485,1.068,650.73,650.19,0.58508107]
[1747788891688,1.068,650.73,650.2,0.58508107]
[1747788891889,1.068,650.73,650.21,1.36307316]
[1747788892086,1.068,650.73,650.22,0.5850236]
[1747788892287,1.068,650.73,650.23,0.5850236]
[1747788892491,1.068,650.73,650.24,0.5850236]
[1747788892691,1.068,650.73,650.25,0.5850236]
[1747788892888,1.068,650.73,650.26,0.5850236]
[1747788893088,1.068,650.73,650.27,0.58502061]
[1747788893297,1.068,650.73,650.28,0.58502061]
[1747788893494,1.068,650.73,650.01,0.25916636]
[1747788893688,1.068,650.73,650.02,1.36291678]
[1747788893893,1.068,650.73,650.03,0.58501426]
[1747788894095,1.068,650.73,650.04,1.36291678]
[1747788894290,1.068,650.73,650.05,0.58501426]
[1747788894495,1.068,650.73,650.06,0.58501426]
[1747788894695,1.068,650.73,650.07,1.36291678]
[1747788894895,1.068,650.73,650.08,1.36291678]
[1747788895095,1.068,650.73,650.09,1.36291678]
[1747788895295,1.068,650.73,650.1,0.58501426]
[1747788895496,1.068,650.73,650.11,1.36291678]
[1747788895696,1.068,650.73,650.12,0.58502803]
[1747788895896,1.068,650.73,650.13,1.36293055]
[1747788896091,1.068,650.73,650.14,0.58502803]
[1747788896291,1.068,650.73,650.15,0.58502803]
[1747788896494,1.068,650.73,650.16,1.36293055]
[1747788896689,1.068,650.73,650.17,0.58502803]
[1747788896893,1.068,650.73,650.18,0.58502803]
[1747788897095,1.068,650.73,650.19,1.36293055]
[1747788897296,1.068,650.73,650.2,1.36293055]
[1747788897498,1.068,650.73,650.21,0.58502803]
[1747788897697,1.068,650.73,650.22,0.58502803]
[1747788897900,1.068,650.73,650.23,0.58502803]
[1747788898098,1.068,650.73,650.24,1.36293055]
[1747788898298,1.068,650.73,650.25,0.58502803]
[1747788898500,1.068,650.73,650.26,0.58502803]
[1747788898701,1.068,650.73,650.27,0.58502803]
[1747788898897,1.068,650.73,650.28,0.58502803]
[1747788899093,1.068,650.73,650.29,0.58502803]
[1747788899293,1.068,650.73,650.13,1.264]
[1747788899498,1.068,650.73,650.14,0.58507278]
[1747788899694,1.068,650.73,650.15,0.58507278]
[1747788899896,1.068,650.73,650.16,0.58507278]
[1747788900101,1.068,650.73,650.17,1.67075486]
[1747788900298,1.068,650.73,650.18,1.36320863]
[1747788900497,1.068,650.73,650.19,0.58507278]
[1747788900694,1.068,650.73,650.2,1.36320863]
[1747788900899,1.068,650.73,650.21,0.58518631]
[1747788901098,1.068,650.73,650.22,0.58518631]
[1747788901302,1.068,650.73,650.23,1.36332216]
[1747788901597,1.068,650.73,650.24,0.58518631]
[1747788901800,1.068,650.73,650.25,0.58518631]
[1747788902000,1.068,650.73,650.26,0.58518631]
[1747788902302,1.068,650.73,650.27,0.58518631]
[1747788902500,1.068,650.73,650.25,0.30754623]
[1747788902696,2.28658578,650.9,650.25,0.30754623]
[1747788903702,2.28658578,650.9,650.13,1.264]
[1747788903903,2.28658578,650.9,650.14,1.36410323]
[1747788904099,2.28658578,650.9,650.15,0.58539903]
[1747788904300,2.28658578,650.9,650.16,0.58539903]
[1747788904500,2.28658578,650.9,650.17,0.58539903]
[1747788904698,2.28658578,650.9,650.13,1.264]
[1747788904903,2.28658578,650.9,650.14,0.58551756]
[1747788905097,2.28658578,650.9,650.15,0.58551756]
[1747788905303,2.28658578,650.9,650.16,0.58551756]
[1747788905502,2.28658578,650.84,650.17,0.58551756]
[1747788905702,2.28658578,650.84,650.13,1.264]
[1747788905904,2.28658578,650.84,650.14,0.58545022]
[1747788906103,2.28658578,650.84,650.15,0.58545022]
[1747788906303,2.28658578,650.84,650.16,0.58545022]
[1747788906504,2.28658578,650.84,650.17,0.58545022]
[1747788906705,2.28658578,650.84,650.13,1.264]
[1747788906905,2.28658578,650.84,650.14,0.58547335]
[1747788907106,2.28658578,650.84,650.15,0.58547335]
[1747788907310,2.28658578,650.84,650.16,0.58547193]
[1747788907610,2.28658578,650.84,650.17,0.58547193]
[1747788907809,2.28658578,650.84,650.18,0.58547193]
[1747788908009,2.28658578,650.77,650.13,1.264]
[1747788908209,2.28658578,650.77,650.14,0.58544484]
[1747788908410,2.28658578,650.77,650.15,0.58544484]
[1747788908609,2.28658578,650.77,650.16,0.58544484]
[1747788908806,2.28658578,650.77,650.17,0.58544484]
[1747788909007,2.28658578,650.77,650.13,1.264]
[1747788909210,2.28658578,650.77,650.14,0.58553232]
[1747788909410,2.28658578,650.77,650.15,0.58553232]
[1747788909611,2.28658578,650.77,650.16,0.58553232]
[1747788909811,2.28658578,650.77,650.17,0.58553232]
[1747788910007,2.28658578,650.77,650.18,0.58553232]
[1747788910208,2.28658578,650.77,650.13,1.264]
[1747788910411,2.28658578,650.77,650.14,0.58560162]
[1747788910609,2.28658578,650.77,650.15,0.58560162]
[1747788910812,2.28658578,650.77,650.16,0.5856006]
[1747788911012,2.28658578,650.77,650.17,0.5856006]
[1747788911214,2.28658578,650.77,650.18,0.5856006]
[1747788911411,2.28658578,650.71,650.13,1.264]
[1747788911612,2.28658578,650.71,650.14,1.36527623]
[1747788911811,2.28658578,650.71,650.15,0.58563771]
[1747788912014,2.28658578,650.71,650.16,0.58563771]
[1747788912209,2.28658578,650.71,650.17,0.58563771]
[1747788912410,2.28658578,650.71,650.18,0.58563771]
[1747788912614,2.28658578,650.71,650.13,1.264]
[1747788912815,2.28658578,650.71,650.14,0.58568183]
[1747788913114,2.28658578,650.71,650.15,0.58568183]
[1747788913315,2.28658578,650.71,650.13,1.264]
[1747788914617,2.28658578,650.79,650.13,1.264]
[1747788915014,2.28658578,650.79,649.83,0.25916636]
[1747788915213,2.28658578,650.79,649.84,0.58576001]
[1747788915417,2.28658578,650.79,649.85,0.58576001]
[1747788915714,2.28658578,650.79,649.86,0.58576001]
[1747788915916,2.28658578,650.79,649.87,1.36558371]
[1747788916110,2.28658578,650.79,649.88,0.58576001]
[1747788916311,2.28658578,650.79,649.89,1.67320823]
[1747788916516,2.28658578,650.79,649.9,0.58576001]
[1747788916716,2.28658578,650.79,649.91,1.36558371]
[1747788916913,2.28658578,650.79,649.92,0.58576001]
[1747788917119,2.28658578,650.79,649.93,0.58576001]
[1747788917413,2.28658578,650.79,649.94,1.36558371]
[1747788917619,2.28658578,650.79,649.95,0.58576001]
[1747788917920,2.28658578,650.86,649.96,0.58576001]
[1747788918120,2.28658578,650.86,649.97,1.36558371]
[1747788918323,2.28658578,650.86,649.98,0.58576001]
[1747788918521,2.28658578,650.86,649.99,0.58576001]
[1747788918716,2.28658578,650.86,649.95,1.91662452]
[1747788919020,2.28658578,650.86,649.96,0.89341763]
[1747788919223,2.28658578,650.86,649.97,0.58579311]
[1747788919422,1.218,650.85,649.98,0.58573019]
[1747788919621,1.218,650.85,649.96,0.30762452]
[1747788919821,1.218,650.85,649.97,0.58573357]
[1747788920119,1.218,650.85,649.96,0.30762452]
[1747788920321,0.26758836,650.84,649.97,0.58573314]
[1747788920525,0.26758836,650.84,649.96,0.30762452]
[1747788920725,0.26758836,650.84,649.97,0.58566555]
[1747788921026,0.26758836,650.84,649.96,0.30762452]
[1747788921326,0.26758836,650.84,649.97,0.58566641]
[1747788921525,0.26758836,650.84,649.96,0.30762452]
[1747788921726,2.28658578,650.69,649.98,0.30762452]
[1747788923227,2.28658578,650.69,649.95,1.609]
[1747788923427,2.28658578,650.69,649.96,0.58560658]
[1747788923628,2.28658578,650.69,649.97,0.58560658]
[1747788923826,2.28658578,650.69,649.98,0.585526]
[1747788924032,2.28658578,650.69,649.99,0.585526]
[1747788924331,2.28658578,650.69,650.0,0.585526]
[1747788924531,2.28658578,650.67,650.01,0.585526]
[1747788924729,2.28658578,650.67,649.95,1.609]
[1747788924929,2.28658578,650.67,649.96,0.5854511]
[1747788925130,2.28658578,650.67,649.97,0.5854511]
[1747788925430,2.28658578,650.67,649.98,0.5854511]
[1747788925630,2.28658578,650.67,649.95,1.609]
[1747788925930,2.28658578,650.67,649.96,0.58535572]
[1747788926129,2.28658578,650.67,649.97,0.58535572]
[1747788926330,2.28658578,650.67,649.95,1.609]
[1747788926531,2.28658578,650.67,649.96,0.58524324]
[1747788926728,2.28658578,650.67,649.95,1.609]
[1747788927634,2.28658578,650.62,649.95,1.609]
[1747788931832,2.28658578,650.6,649.95,1.609]
[1747788935935,2.55421221,650.74,649.95,1.609]
[1747788937938,2.28658578,650.74,649.95,1.609]
[1747788938738,0.26762026,650.73,649.95,1.609]
[1747788938934,2.28658578,650.72,649.95,1.609]
[1747788941833,0.26762231,650.71,649.95,1.609]
[1747788942338,0.911,650.7,649.95,1.609]
[1747788942538,0.911,650.7,649.96,0.58426094]
[1747788942735,0.911,650.7,649.97,0.58426094]
[1747788942935,0.911,650.7,649.95,1.609]
[1747788943135,0.911,650.7,649.96,0.5841935]
[1747788943334,0.911,650.7,649.97,0.5841935]
[1747788943536,0.911,650.7,649.95,1.609]
[1747788943741,0.911,650.7,649.96,0.58422633]
[1747788943941,0.911,650.7,649.97,0.58422063]
[1747788944143,0.911,650.7,649.98,0.58422063]
[1747788944341,0.911,650.7,649.99,0.58422063]
[1747788944642,0.911,650.7,650.0,0.58422063]
[1747788944835,0.911,650.7,649.95,1.609]
[1747788945037,0.911,650.7,649.96,1.36153158]
[1747788945241,0.911,650.7,649.97,0.58425176]
[1747788945442,0.911,650.7,649.98,0.58425176]
[1747788945642,0.911,650.7,649.99,0.58425176]
[1747788945937,0.911,650.7,650.0,0.58425176]
[1747788946142,0.911,650.7,649.95,1.609]
[1747788946339,0.911,650.7,649.96,0.58430197]
[1747788946543,0.911,650.7,649.97,0.58430197]
[1747788946744,0.911,650.7,649.95,1.609]
[1747788946943,0.911,650.7,649.96,0.5844366]
[1747788947139,0.911,650.7,649.95,1.609]
[1747788947341,0.911,650.7,649.96,0.58443689]
[1747788947540,0.911,650.7,649.95,1.609]
[1747788947845,0.911,650.7,649.64,0.25923757]
[1747788948046,0.911,650.7,649.65,0.58448648]
[1747788948248,0.911,650.7,649.66,1.36272857]
[1747788948545,0.911,650.7,649.67,0.58448648]
[1747788948840,0.911,650.7,649.68,1.36272857]
[1747788949045,0.911,650.7,649.69,1.36272857]
[1747788949246,0.911,650.7,649.7,0.89224388]
[1747788949445,0.911,650.7,649.71,1.36279143]
[1747788949745,0.911,650.7,649.72,1.36279143]
[1747788949946,0.911,650.7,649.73,0.58454934]
[1747788950145,0.911,650.7,649.74,1.36279143]
[1747788950348,0.911,650.7,649.75,0.58454934]
[1747788950540,0.911,650.7,649.76,0.58454934]
[1747788950740,0.911,650.7,649.77,1.36279143]
[1747788950946,0.911,650.7,649.78,0.58454934]
[1747788951146,0.911,650.7,649.79,0.58454934]
[1747788951347,1.1786429,650.7,649.8,0.58454934]
[1747788951544,2.28658578,650.69,649.81,1.36279143]
[1747788951741,2.28658578,650.69,649.82,0.58454934]
[1747788951940,2.28658578,650.69,649.83,0.58454934]
[1747788952140,2.28658578,650.69,649.84,0.58454934]
[1747788952347,2.28658578,650.69,649.85,0.58454934]
[1747788952546,2.28658578,650.69,649.86,1.36279143]
[1747788952747,2.28658578,650.69,649.87,0.58482895]
[1747788952943,2.28658578,650.69,649.88,0.58482895]
[1747788953145,2.28658578,650.69,649.89,0.58482895]
[1747788953341,2.28658578,650.69,649.9,0.58482895]
[1747788953545,2.28658578,650.69,649.91,0.58482895]
[1747788953742,2.28658578,650.69,649.92,0.58482895]
[1747788953946,2.28658578,650.69,649.79,1.586]
[1747788954147,2.28658578,650.69,649.8,1.36511909]
[1747788954345,2.28658578,650.69,649.81,1.36511909]
[1747788954547,2.28658578,650.69,649.82,0.58492374]
[1747788954745,2.28658578,650.66,649.83,1.36511909]
[1747788954945,2.28658578,650.66,649.84,1.36511909]
[1747788955142,2.28658578,650.66,649.85,1.36511909]
[1747788955347,2.28658578,650.66,649.86,0.58492374]
[1747788955543,2.28658578,650.66,649.87,0.58492374]
[1747788955742,2.28658578,650.66,649.88,0.89263881]
[1747788955948,2.28658578,650.66,649.89,0.58492374]
[1747788956248,2.28658578,650.66,649.9,0.58509672]
[1747788956447,2.28658578,650.66,649.91,0.58509672]
[1747788956648,2.28658578,650.66,649.92,0.58509672]
[1747788956844,2.28658578,650.66,649.93,0.58509672]
[1747788957048,2.28658578,650.66,649.88,0.30771507]
[1747788957249,2.28658578,650.66,649.89,1.3662032]
[1747788957449,2.28658578,650.66,649.9,0.58520641]
[1747788957748,2.28658578,650.66,649.91,0.58520641]
[1747788957950,2.28658578,650.66,649.92,0.5853438]
[1747788958249,2.28658578,650.66,649.93,0.5853438]
[1747788958450,2.28658578,650.66,649.94,0.5853438]
[1747788958650,2.28658578,650.66,649.95,0.5853438]
[1747788958851,2.28658578,650.66,649.9,0.30771507]
[1747788959151,2.28658578,650.66,649.91,0.58549844]
[1747788959452,2.28658578,650.66,649.92,1.3668742]
[1747788959652,2.28658578,650.66,649.93,0.78137576]
[1747788959952,2.28658578,650.66,649.94,0.5856499]
[1747788960153,2.28658578,650.66,649.95,0.5856499]
[1747788960353,2.28658578,650.66,649.96,0.5856499]
[1747788960550,2.28658578,650.66,649.91,0.30771507]
[1747788960747,2.28658578,650.66,649.92,0.58565109]
[1747788960950,2.28658578,650.67,649.93,0.58565109]
[1747788961147,2.28658578,650.67,649.94,0.58565109]
[1747788961346,2.28658578,650.67,649.95,0.58565109]
[1747788961548,2.28658578,650.67,649.96,0.58565109]
[1747788961750,2.28658578,650.67,649.92,0.30771507]
[1747788961950,2.28658578,650.67,649.93,0.58565418]
[1747788962151,2.28658578,650.67,649.94,0.58565418]
[1747788962353,2.28658578,650.67,649.95,0.58565418]
[1747788962551,2.28658578,650.67,649.96,0.58586584]
[1747788962749,2.28658578,650.67,649.97,0.58586584]
[1747788962949,2.28658578,650.67,649.93,0.30771507]
[1747788963149,2.28658578,650.67,649.94,0.58586584]
[1747788963351,2.28658578,650.67,649.95,0.58586584]
[1747788963552,2.28658578,650.68,649.96,0.58586584]
[1747788963753,2.28658578,650.68,649.94,0.30771507]
[1747788963956,2.28658578,650.68,649.95,0.58596451]
[1747788964154,2.28658578,650.68,649.94,0.30771507]
[1747788964350,2.28658578,650.68,649.95,0.58601335]
[1747788964549,2.28658578,650.68,649.94,0.30771507]
[1747788964753,2.28658578,650.68,649.95,0.58601216]
[1747788964953,2.28658578,650.68,649.94,0.30771507]
[1747788965153,2.28658578,650.68,649.96,0.30771507]
[1747788966257,2.28658578,650.68,649.97,0.58603267]
[1747788966558,2.28658578,650.68,649.98,1.36798051]
[1747788966752,2.28658578,650.68,649.99,0.58603267]
[1747788966954,2.28658578,650.68,650.0,0.58603267]
[1747788967150,2.28658578,650.68,650.01,0.58603267]
[1747788967354,2.28658578,650.68,650.02,1.36798051]
[1747788967554,2.28658578,650.68,650.03,0.58603267]
[1747788967752,2.28658578,650.79,650.04,0.58613867]
[1747788967956,2.28658578,650.79,650.0,0.30771507]
[1747788968150,2.28658578,650.79,650.01,1.36745552]
[1747788968349,2.28658578,650.79,650.02,0.58613867]
[1747788968554,2.28658578,650.79,650.01,0.78131685]
[1747788968756,2.28658578,650.79,650.0,0.30771507]
[1747788969054,2.28658578,650.79,650.01,1.39971507]
[1747788970260,1.225,650.78,650.01,1.39971507]
[1747788970658,1.225,650.78,650.01,1.092]
[1747788971659,1.225,650.78,650.02,0.30770483]
[1747788973461,2.28658578,650.76,650.01,1.092]
[1747788975260,2.28658578,650.76,650.02,0.58691029]
[1747788975464,2.28658578,650.76,650.01,1.092]
[1747788975959,2.28658578,650.76,650.02,0.58691061]
[1747788976164,2.28658578,650.76,650.01,1.092]
[1747788976365,2.28658578,650.76,650.02,0.58701177]
[1747788976559,2.28658578,650.68,650.01,1.092]
[1747788976761,2.28658578,650.68,650.02,0.58701176]
[1747788977058,2.28658578,650.68,650.01,1.092]
[1747788977259,2.28658578,650.68,650.02,0.58701369]
[1747788977459,2.28658578,650.68,650.03,0.5871242]
[1747788977660,2.28658578,650.68,650.01,1.092]
[1747788977865,2.28658578,650.68,650.02,0.58712006]
[1747788978067,2.28658578,650.68,650.03,0.58712006]
[1747788978261,2.28658578,650.68,650.01,1.092]
[1747788978461,2.28658578,650.68,650.02,0.5871713]